[Event "Fagernes GM Open Autumn 2024"]
[Site "Fagernes"]
[Date "2024.10.09"]
[Round "4.28"]
[White "Kittilsen, Sigurd"]
[Black "Simonsen, David Mindestrommen"]
[Result "1-0"]
[ECO "B90"]
[WhiteElo "1981"]
[BlackElo "1930"]
[Annotator "RC"]
[PlyCount "65"]
[EventDate "2024.10.03"]
[EventType "swiss"]
[EventCountry "NOR"]
[SourceTitle "playchess.com"]
[Source "ChessBase"]
[SourceQuality "1"]
[TimeControl "40/6000:2400+30"]

1. e4 {[%emt 0:00:00]} c5 {[%emt 0:00:00]} 2. Nf3 {[%emt 0:00:00]} d6 {[%emt 0:00:00]} 3. d4 {[%emt 0:00:00]} cxd4 {[%emt 0:00:00]} 4. Nxd4 {[%emt 0:00:00]} Nf6 {[%emt 0:00:00]} 5. Nc3 {[%emt 0:00:00]} a6 {[%emt 0:00:00]} 6. Be3 {[%emt 0:00:00]} e5 {[%emt 0:00:00]} 7. Nb3 {[%emt 0:00:00]} Be7 {[%emt 0:00:00]} 8. f3 {[%emt 0:00:00]} Be6 {[%emt 0:00:00]} 9. Qd2 {[%emt 0:00:00]} h5 {[%emt 0:00:00]} 10. a4 {[%emt 0:00:00]} Nbd7 {[%emt 0:01:25]} 11. Be2 {[%emt 0:00:00]} Rc8 {[%emt 0:07:16]} 12. a5 {[%emt 0:00:00]} Qc7 {[%emt 0:06:25]} 13. O-O {[%emt 0:00:00]} O-O {[%emt 0:00:59]} 14. Rfc1 {[%emt 0:00:00]} Bc4 {[%emt 0:13:03]} 15. Bxc4 {[%emt 0:25:56]} Qxc4 {[%emt 0:00:12]} 16. Nd5 {[%emt 0:00:41]} Nxd5 {[%emt 0:02:22]} 17. Qxd5 {[%emt 0:00:01]} Qxd5 {[%emt 0:04:52]} 18. exd5 {[%emt 0:00:00]} f5 {[%emt 0:13:37]} 19. c4 {[%emt 0:03:02]} h4 {[%emt 0:04:34]} 20. Rc2 {[%emt 0:04:20]} g5 {[%emt 0:09:27]} 21. h3 {[%emt 0:06:39]} Bd8 {[%emt 0:02:18]} 22. Nd2 {[%emt 0:20:58]} Kg7 {[%emt 0:01:37]} 23. b4 {[%emt 0:00:36]} g4 {[%emt 0:07:10]} 24. fxg4 {[%emt 0:03:04]} fxg4 {[%emt 0:00:00]} 25. Ne4 {[%emt 0:01:41]} gxh3 {[%emt 0:00:17]} 26. Nxd6 {[%emt 0:00:47]} Rb8 {[%emt 0:00:00]} 27. gxh3 {[%emt 0:09:59]} Be7 {[%emt 0:01:53]} 28. Rg2+ {[%emt 0:00:23]} Kh8 {[%emt 0:01:48]} 29. Bc5 {[%emt 0:01:28]} Nxc5 {[%emt 0:00:53]} 30. bxc5 {[%emt 0:00:00]} Bxd6 {[%emt 0:00:00]} 31. cxd6 {[%emt 0:00:00]} Rfd8 {[%emt 0:00:00]} 32. c5 {[%emt 0:00:00]} Rbc8 {[%emt 0:00:19]} 33. Ra4 {[%emt 0:00:00]} 1-0

[Event "Fagernes GM Open Autumn 2024"]
[Site "Fagernes"]
[Date "2024.10.09"]
[Round "4.29"]
[White "Juodziukynas, Aidas"]
[Black "Hetland, Even"]
[Result "1/2-1/2"]
[ECO "E04"]
[WhiteElo "1917"]
[BlackElo "1970"]
[Annotator "RC"]
[PlyCount "106"]
[EventDate "2024.10.03"]
[EventType "swiss"]
[EventCountry "NOR"]
[SourceTitle "playchess.com"]
[Source "ChessBase"]
[SourceQuality "1"]
[TimeControl "40/6000:2400+30"]

1. d4 {[%emt 0:00:00]} Nf6 {[%emt 0:00:00]} 2. Nf3 {[%emt 0:00:00]} e6 {[%emt 0:00:00]} 3. c4 {[%emt 0:00:00]} d5 {[%emt 0:00:00]} 4. g3 {[%emt 0:00:00]} dxc4 {[%emt 0:00:00]} 5. Bg2 {[%emt 0:00:00]} c5 {[%emt 0:00:00]} 6. O-O {[%emt 0:00:00]} Nc6 {[%emt 0:00:00]} 7. dxc5 {[%emt 0:00:43]} Qxd1 {[%emt 0:00:00]} 8. Rxd1 {[%emt 0:00:00]} Bxc5 {[%emt 0:00:00]} 9. Nbd2 {[%emt 0:00:36]} c3 {[%emt 0:00:00]} 10. bxc3 {[%emt 0:00:00]} O-O {[%emt 0:00:00]} 11. c4 {[%emt 0:01:09]} e5 {[%emt 0:10:50]} 12. e3 {[%emt 0:06:11]} Re8 {[%emt 0:09:59]} 13. Bb2 {[%emt 0:01:03]} Bf8 {[%emt 0:08:21]} 14. h3 {[%emt 0:04:08]} Rb8 {[%emt 0:03:05]} 15. Ng5 {[%emt 0:01:53]} Nd7 {[%emt 0:15:34]} 16. Bd5 {[%emt 0:01:18]} Nd8 {[%emt 0:00:00]} 17. Ndf3 {[%emt 0:03:39]} h6 {[%emt 0:00:31]} 18. Ne4 {[%emt 0:00:17]} Nc6 {[%emt 0:02:03]} 19. Rab1 {[%emt 0:02:01]} Nb6 {[%emt 0:01:50]} 20. Bxc6 {[%emt 0:02:55]} bxc6 {[%emt 0:00:00]} 21. Nxe5 {[%emt 0:00:26]} Nxc4 {[%emt 0:03:42]} 22. Nxc4 {[%emt 0:01:15]} Rxe4 {[%emt 0:00:00]} 23. Na5 {[%emt 0:02:24]} Rb6 {[%emt 0:09:20]} 24. Rd8 {[%emt 0:01:06]} Be6 {[%emt 0:13:24]} 25. Nb3 {[%emt 0:05:29]} Bxb3 {[%emt 0:01:47]} 26. axb3 {[%emt 0:00:00]} Rxb3 {[%emt 0:00:00]} 27. Rxf8+ {[%emt 0:00:00]} Kxf8 {[%emt 0:00:00]} 28. Bxg7+ {[%emt 0:00:00]} Kxg7 {[%emt 0:00:00]} 29. Rxb3 {[%emt 0:00:00]} Re7 {[%emt 0:09:42]} 30. Rc3 {[%emt 0:00:42]} Rc7 {[%emt 0:00:00]} 31. Rc5 {[%emt 0:00:00]} f6 {[%emt 0:01:00]} 32. f4 {[%emt 0:01:16]} Kf7 {[%emt 0:00:00]} 33. Kf2 {[%emt 0:00:03]} Ke6 {[%emt 0:00:05]} 34. g4 {[%emt 0:00:52]} Kf7 {[%emt 0:07:28]} 35. Kf3 {[%emt 0:00:11]} Kg6 {[%emt 0:00:00]} 36. e4 {[%emt 0:00:00]} Kf7 {[%emt 0:00:00]} 37. h4 {[%emt 0:00:06]} Rc8 {[%emt 0:00:00]} 38. Rf5 {[%emt 0:02:56]} Kg7 {[%emt 0:00:27]} 39. Ke3 {[%emt 0:00:12]} c5 {[%emt 0:00:17]} 40. Kd3 {[%emt 0:00:19]} a5 {[%emt 0:00:00]} 41. Rd5 {[%emt 0:40:40]} Rc7 {[%emt 0:02:29]} 42. Rd8 {[%emt 0:00:00]} Ra7 {[%emt 0:09:21]} 43. Kc4 {[%emt 0:00:00]} a4 {[%emt 0:01:15]} 44. Kxc5 {[%emt 0:00:00]} a3 {[%emt 0:00:07]} 45. Rd1 {[%emt 0:00:00]} Re7 {[%emt 0:03:48]} 46. Re1 {[%emt 0:00:00]} a2 {[%emt 0:00:39]} 47. Kd5 {[%emt 0:00:00]} Kf7 {[%emt 0:01:47]} 48. g5 {[%emt 0:00:00]} hxg5 {[%emt 0:02:33]} 49. hxg5 {[%emt 0:00:00]} fxg5 {[%emt 0:00:13]} 50. fxg5 {[%emt 0:00:00]} Ra7 {[%emt 0:00:20]} 51. Ra1 {[%emt 0:00:00]} Ra5+ {[%emt 0:00:50]} 52. Kc4 {[%emt 0:00:00]} Kg6 {[%emt 0:00:20]} 53. Kb3 {[%emt 0:00:00]} Re5 {[%emt 0:00:36]} 1/2-1/2

[Event "Fagernes GM Open Autumn 2024"]
[Site "Fagernes"]
[Date "2024.10.09"]
[Round "4.30"]
[White "Gasland, Lukas Dominik"]
[Black "Rustan, Elias Buschmann"]
[Result "1-0"]
[ECO "E21"]
[WhiteElo "1905"]
[BlackElo "1941"]
[Annotator "RC"]
[PlyCount "61"]
[EventDate "2024.10.03"]
[EventType "swiss"]
[EventCountry "NOR"]
[SourceTitle "playchess.com"]
[Source "ChessBase"]
[SourceQuality "1"]
[TimeControl "40/6000:2400+30"]

1. d4 {[%emt 0:00:00]} Nf6 {[%emt 0:00:00]} 2. c4 {[%emt 0:00:00]} e6 {[%emt 0:00:00]} 3. Nf3 {[%emt 0:00:00]} b6 {[%emt 0:00:00]} 4. g3 {[%emt 0:00:00]} Bb7 {[%emt 0:00:00]} 5. Nc3 {[%emt 0:05:39]} Bb4 {[%emt 0:01:43]} 6. Bg2 {[%emt 0:04:11]} O-O {[%emt 0:03:51]} 7. O-O {[%emt 0:01:09]} d5 {[%emt 0:00:04]} 8. cxd5 {[%emt 0:05:37]} Nxd5 {[%emt 0:03:40]} 9. Qb3 {[%emt 0:02:23]} Nxc3 {[%emt 0:15:36]} 10. bxc3 {[%emt 0:00:49]} Be7 {[%emt 0:00:28]} 11. Rd1 {[%emt 0:05:01]} Nd7 {[%emt 0:12:24]} 12. c4 {[%emt 0:07:29]} Nf6 {[%emt 0:01:31]} 13. Bb2 {[%emt 0:01:21]} a5 {[%emt 0:02:15]} 14. Rac1 {[%emt 0:07:10]} a4 {[%emt 0:07:40]} 15. Qe3 {[%emt 0:01:44]} a3 {[%emt 0:03:12]} 16. Ba1 {[%emt 0:00:00]} Qe8 {[%emt 0:06:05]} 17. Ne5 {[%emt 0:04:04]} Bxg2 {[%emt 0:02:41]} 18. Kxg2 {[%emt 0:00:19]} Qa4 {[%emt 0:06:03]} 19. d5 {[%emt 0:08:19]} exd5 {[%emt 0:02:07]} 20. cxd5 {[%emt 0:02:38]} Bc5 {[%emt 0:06:43]} 21. Qf3 {[%emt 0:05:47]} Rfe8 {[%emt 0:12:01]} 22. e3 {[%emt 0:06:56]} Bd6 {[%emt 0:03:40]} 23. Rd4 {[%emt 0:03:13]} Qb5 {[%emt 0:01:02]} 24. Ng4 {[%emt 0:00:59]} Nxg4 {[%emt 0:02:48]} 25. Rxg4 {[%emt 0:01:41]} Be5 {[%emt 0:01:36]} 26. Rxc7 {[%emt 0:00:58]} f5 {[%emt 0:02:12]} 27. Rgxg7+ {[%emt 0:00:11]} Bxg7 {[%emt 0:00:00]} 28. Rxg7+ {[%emt 0:00:00]} Kh8 {[%emt 0:00:00]} 29. Rxh7+ {[%emt 0:00:00]} Kg8 {[%emt 0:00:00]} 30. Rg7+ {[%emt 0:00:00]} Kf8 {[%emt 0:00:07]} 31. Qxf5# {[%emt 0:00:00]} 1-0

[Event "Fagernes GM Open Autumn 2024"]
[Site "Fagernes"]
[Date "2024.10.09"]
[Round "5.1"]
[White "Jumabayev, Rinat"]
[Black "Mitusov, Semen"]
[Result "1-0"]
[ECO "C54"]
[WhiteElo "2577"]
[BlackElo "2486"]
[Annotator "TA"]
[PlyCount "55"]
[EventDate "2024.10.03"]
[EventType "swiss"]
[EventCountry "NOR"]
[SourceTitle "playchess.com"]
[Source "ChessBase"]
[SourceQuality "1"]
[TimeControl "40/6000:2400+30"]

{[%evp 14,55,16,18,7,0,0,4,7,0,0,0,0,0,0,-3,34,21,108,0,32,0,111,20,131,123,112,120,135,133,147,127,142,137,179,179,177,171,290,286,256,250,300,301]} 1. e4 {[%emt 0:00:24]} e5 {[%emt 0:00:14]} 2. Nf3 {[%emt 0:00:00]} Nc6 {[%emt 0:00:22]} 3. Bc4 {[%emt 0:00:00]} Bc5 {[%emt 0:00:00]} 4. c3 {[%emt 0:07:09]} Nf6 {[%emt 0:00:00]} 5. d3 {[%emt 0:00:00]} a6 {[%emt 0:02:26]} 6. O-O {[%emt 0:00:00]} d6 {[%emt 0:00:10]} 7. Bb3 {[%emt 0:08:37]} Ba7 {[%emt 0:00:54]} 8. Re1 {[%emt 0:03:51]} h6 {[%emt 0:02:34]} 9. Be3 {[%emt 0:09:32]} Bxe3 {[%emt 0:03:15]} 10. Rxe3 {[%emt 0:00:00]} O-O {[%emt 0:00:20] The position is equal.} 11. Nbd2 {[%emt 0:02:58]} Re8 {[%emt 0:15:40]} 12. d4 {[%emt 0:09:00]} Bg4 {[%emt 0:08:02]} 13. Qb1 {[%emt 0:00:59]} Nh5 {[%emt 0:02:44]} 14. g3 {[%emt 0:08:52]} Qf6 {[%emt 0:12:23][%cal Re5d4]} 15. Qd3 {[%emt 0:00:20]} Ne7 {[%emt 0:04:10] [#]} (15... Qg6 $11) 16. Qf1 {[%emt 0:25:08]} (16. Qc4 $1 $16) 16... Nc6 {[%emt 0:10:28][%cal Re5d4]} 17. Qd3 {[%emt 0:02:32]} (17. Bd1 $14) 17... Ne7 $16 {[%emt 0:00:00] [#]} 18. Bd1 {[%emt 0:04:02]} (18. Qc4 $1 $16) 18... Ng6 {[%emt 0:10:53] [#]} (18... Qe6 $11 {keeps the balance.}) 19. Nxe5 $1 {[%emt 0:03:06][%mdl 512]} Bxd1 {[%emt 0:04:34]} 20. Nxg6 {[%emt 0:00:00]} Bg4 {[%emt 0:00:06]} 21. Nh4 {[%emt 0:00:00]} Nf4 {[%emt 0:00:51]} 22. gxf4 {[%emt 0:00:52]} Qxh4 {[%emt 0:00:00]} 23. Rg3 {[%emt 0:00:37]} d5 {[%emt 0:03:51]} 24. e5 {[%emt 0:02:37]} ({Stronger than} 24. exd5 Bh5 $11) 24... g6 {[%emt 0:00:00]} 25. Nf1 {[%emt 0:02:42] Ne3 would now be deadly.} Qh5 {[%emt 0:04:51]} (25... Bf5 {might work better.} 26. Qxf5 Qxg3+ 27. hxg3 (27. Nxg3 gxf5 28. Nxf5 Re6 $16) 27... gxf5) 26. Ne3 $18 {[%emt 0:00:35][%csl LRd5,LRg4]} Bf3 {[%emt 0:00:24]} 27. Qf5 {[%emt 0:00:58]} Qh4 {[%emt 0:00:33][%cal Oh4g3] Hoping for ...Qxg3+!} 28. Qh3 {[%emt 0:00:00] Weighted Error Value: White=0.17 (very precise) /Black=0.30.  Mistake:       	White=3     	Black=3      Inaccurate:     	---       	Black=3      OK:         	White=12    	Black=10     Brilliant:      	White=1     	---} 1-0

[Event "Fagernes GM Open Autumn 2024"]
[Site "Fagernes"]
[Date "2024.10.09"]
[Round "5.3"]
[White "Aizenberg, Benny"]
[Black "Stremavicius, Titas"]
[Result "0-1"]
[ECO "B30"]
[WhiteElo "2423"]
[BlackElo "2541"]
[Annotator "TA"]
[PlyCount "108"]
[EventDate "2024.10.03"]
[EventType "swiss"]
[EventCountry "NOR"]
[SourceTitle "playchess.com"]
[Source "ChessBase"]
[SourceQuality "1"]
[TimeControl "40/6000:2400+30"]

{[%evp 11,108,15,16,26,21,4,3,3,22,20,29,18,29,22,25,18,15,0,0,0,0,0,0,-68,-41,-192,-193,-179,-178,-189,-120,-116,-89,-109,-85,-114,-102,-81,-13,-11,-12,-59,-15,-16,0,-84,-94,-116,-13,-131,-123,-160,-167,-167,-169,-201,-210,-217,-214,-255,-191,-202,-84,-119,-79,-275,-277,-250,-252,-335,-344,-473,-490,-490,-490,-505,-378,-383,-380,-452,-454,-766,-699,-666,-581,-1117,-1110,-1101,-1089,-1089,-1089,-1089,-884,-884,-884,-9085,-9085,-29992,-29993]} 1. e4 {[%emt 0:00:00][%cal Be2e4,Be4e5][%mdl 32]} c5 {[%emt 0:03:33]} 2. Nf3 {[%emt 0:00:00]} Nc6 {[%emt 0:00:00]} 3. Bb5 {[%emt 0:00:00]} Nf6 {[%emt 0:00:00]} 4. Nc3 {[%emt 0:00:00]} Nd4 {[%emt 0:00:00]} 5. e5 {[%emt 0:00:00]} Nxb5 {[%emt 0:00:00]} 6. Nxb5 {[%emt 0:00:00]} Nd5 {[%emt 0:00:00]} 7. c4 {[%emt 0:01:01]} Nc7 {[%emt 0:00:00]} 8. Nc3 {[%emt 0:00:21]} d6 {[%emt 0:09:11]} 9. O-O {[%emt 0:02:25] The position is equal.} dxe5 {[%emt 0:11:12]} 10. Nxe5 {[%emt 0:00:00]} g6 {[%emt 0:00:00] [#]} 11. b4 $1 {[%emt 0:17:47]} Bg7 {[%emt 0:00:48]} 12. Re1 {[%emt 0:01:35]} O-O {[%emt 0:12:16]} 13. bxc5 {[%emt 0:01:03] Strongly threatening d4.} Qd4 {[%emt 0:03:11][%csl LRc5,LRe5]} 14. Re4 {[%emt 0:17:14]} Qxc5 {[%emt 0:00:00]} 15. d4 {[%emt 0:00:00]} Qa5 {[%emt 0:00:40]} 16. Bd2 {[%emt 0:07:38][%cal Oc3d5] Nd5! is the strong threat.} Qa6 {[%emt 0:00:18]} 17. Qc1 {[%emt 0:05:41]} (17. Rc1 $11) 17... Bf5 {[%emt 0:08:02]} 18. Rh4 {[%emt 0:01:29]} ({Better is} 18. Re1 $15) 18... f6 $19 {[%emt 0:00:27]} 19. Ng4 {[%emt 0:03:18]} Bxg4 {[%emt 0:00:23]} ({But not} 19... Qxc4 20. Ne3 Qd3 21. Na4 $15) 20. Rxg4 {[%emt 0:00:00]} Qxc4 {[%emt 0:00:00]} (20... f5 $1 $19 {[%cal Rf5g4]} 21. Rg3 Qxc4 (21... Bxd4 22. Qe1 $17)) 21. Re4 $17 {[%emt 0:04:03]} Qf7 {[%emt 0:04:52] Black is more active.} 22. Qa3 {[%emt 0:09:48]} Rfe8 {[%emt 0:01:42]} 23. Rae1 {[%emt 0:01:35]} e6 {[%emt 0:00:00]} 24. Bf4 {[%emt 0:01:46]} Nd5 {[%emt 0:12:02]} (24... e5 $17 25. dxe5 f5) 25. Nxd5 $11 {[%emt 0:00:34]} exd5 {[%emt 0:00:00]} 26. R4e3 {[%emt 0:00:00]} (26. Rxe8+ $11 Rxe8 27. Rxe8+ Qxe8 28. Qa5) 26... Bf8 $40 {[%emt 0:04:30][%mdl 128] Black has some attack.} 27. Bd6 {[%emt 0:01:03]} Bh6 {[%emt 0:00:21]} 28. f4 {[%emt 0:08:26]} (28. Rxe8+ $11 {remains equal.} Rxe8 29. Rxe8+ Qxe8 30. Qa5) 28... Rxe3 $17 {[%emt 0:00:00]} 29. Qxe3 {[%emt 0:00:00] [#]} Qd7 {[%emt 0:05:28]} (29... Rd8 $1 $17 {[%cal Rd8d6]} 30. Ba3 f5) 30. Ba3 {[%emt 0:00:10]} (30. Qe7 $11 Qxe7 31. Rxe7) 30... f5 {[%emt 0:01:25]} 31. h3 {[%emt 0:01:32]} Bg7 {[%emt 0:00:00]} 32. Kh2 {[%emt 0:00:00]} Bf6 {[%emt 0:00:07]} 33. Bb4 {[%emt 0:01:45]} Rc8 {[%emt 0:00:25]} 34. Qa3 {[%emt 0:01:44]} Bxd4 {[%emt 0:03:03]} 35. Re7 {[%emt 0:03:32]} Qc6 {[%emt 0:00:00]} 36. Bd6 {[%emt 0:00:00]} Re8 {[%emt 0:05:54]} (36... Bg7 $19 {Threatens to win with ...Bf8.} 37. Re2 Qc4) 37. Rc7 {[%emt 0:00:11]} Qb5 {[%emt 0:01:17]} (37... Qa6 {simplifies} 38. Qxa6 bxa6 39. Rd7 a5) 38. Qb4 $2 {[%emt 0:02:53]} (38. Be5 $17 {was worth a try.} Bxe5 (38... Rxe5 39. Qd6 $15) 39. fxe5) 38... Qxb4 $19 {[%emt 0:00:46]} 39. Bxb4 {[%emt 0:00:00][%mdl 4096] Endgame. KRB-KRB} Be3 {[%emt 0:03:47]} 40. g3 {[%emt 0:00:00]} Bb6 {[%emt 0:02:51]} 41. Rxb7 {[%emt 0:02:35]} Re2+ {[%emt 0:00:48]} 42. Kh1 {[%emt 0:00:10]} Rxa2 {[%emt 0:03:00]} 43. g4 {[%emt 0:02:30]} fxg4 {[%emt 0:05:06]} 44. hxg4 {[%emt 0:00:05]} Rf2 {[%emt 0:01:41]} 45. Bd6 {[%emt 0:04:33]} d4 {[%emt 0:06:28] aiming for ...d3.} 46. Kg1 {[%emt 0:05:25]} (46. Rd7 $142 d3 47. Bb4) 46... Re2 {[%emt 0:00:21] And now ...d3+ would win.} 47. Kf1 {[%emt 0:00:07]} d3 {[%emt 0:00:10]} 48. Rd7 {[%emt 0:02:35]} Rf2+ {[%emt 0:03:54]} 49. Ke1 {[%emt 0:00:10]} d2+ {[%emt 0:00:23]} 50. Kd1 {[%emt 0:00:04]} Be3 {[%emt 0:04:15]} 51. Rd8+ {[%emt 0:00:56]} Kf7 {[%emt 0:00:07]} 52. Rd7+ {[%emt 0:00:08]} Kf6 {[%emt 0:00:19]} 53. g5+ {[%emt 0:02:06]} Kf5 {[%emt 0:00:06] ( -> ...Rf1+)} 54. Rf7+ {[%emt 0:00:16]} Kg4 {[%emt 0:00:07] Weighted Error Value: White=0.56/Black=0.22 (precise) .  Loses game:     	White=1     	---        Mistake:       	White=6     	Black=4      Inaccurate:     	White=5     	Black=3      OK:         	White=10    	Black=19     Best:        	White=1     	Black=4} 0-1

[Event "Fagernes GM Open Autumn 2024"]
[Site "Fagernes"]
[Date "2024.10.09"]
[Round "5.4"]
[White "Raja Rithvik R"]
[Black "Hillarp Persson, Tiger"]
[Result "1-0"]
[ECO "D35"]
[WhiteElo "2514"]
[BlackElo "2455"]
[Annotator "TA"]
[PlyCount "117"]
[EventDate "2024.10.03"]
[EventType "swiss"]
[EventCountry "NOR"]
[SourceTitle "playchess.com"]
[Source "ChessBase"]
[SourceQuality "1"]
[TimeControl "40/6000:2400+30"]

{[%evp 10,117,16,6,9,3,10,0,10,9,27,40,41,37,40,21,48,31,22,13,28,31,17,34,19,41,63,76,80,70,74,66,116,50,47,61,42,27,52,0,116,116,100,46,176,184,631,584,998,1001,1031,1011,900,431,603,416,401,237,237,233,210,0,0,0,241,214,252,244,233,201,198,187,292,284,257,190,241,7,27,0,0,0,0,0,0,0,0,0,0,0,0,0,0,0,0,0,0,0,28,28,985,964,633,531,1718,1449,5089,5085,1739,1515]} 1. d4 {[%emt 0:00:45]} Nf6 {[%emt 0:00:00]} 2. c4 {[%emt 0:00:00]} e6 {[%emt 0:00:00]} 3. Nf3 {[%emt 0:00:00]} d5 {[%emt 0:00:00]} 4. Nc3 {[%emt 0:00:00]} Nbd7 {[%emt 0:00:00][%cal Bb8d7,Bd7b6,Bb6c4][%mdl 32]} 5. cxd5 {[%emt 0:01:36]} exd5 {[%emt 0:00:00]} 6. Bf4 {[%emt 0:00:00]} Nb6 {[%emt 0:00:09]} 7. e3 {[%emt 0:07:53]} Bf5 {[%emt 0:02:33] Prevents Qc2} 8. h3 {[%emt 0:09:29]} c6 {[%emt 0:02:05] The position is equal.} 9. g4 {[%emt 0:06:58]} Be6 {[%emt 0:00:59]} 10. Bd3 {[%emt 0:00:29]} Nc4 {[%emt 0:25:51]} 11. Qc2 {[%emt 0:07:23]} Be7 {[%emt 0:03:51]} 12. O-O-O {[%emt 0:07:13]} b5 $1 {[%emt 0:04:49]} 13. Kb1 {[%emt 0:05:33]} a5 {[%emt 0:08:51][%cal Ba7a5,Ba5a4,Ba4a3][%mdl 32]} 14. Ng5 {[%emt 0:10:25][%cal Og5e6]} Bd7 {[%emt 0:00:00]} 15. Rhe1 {[%emt 0:00:00][%cal Oe3e4]} h6 {[%emt 0:12:28]} 16. Nf3 {[%emt 0:00:00]} a4 {[%emt 0:03:10]} 17. Ne5 {[%emt 0:08:41]} a3 {[%emt 0:00:43]} 18. b3 {[%emt 0:00:41]} Nb2 {[%emt 0:00:00]} 19. Rc1 {[%emt 0:00:35]} Nxd3 {[%emt 0:00:00]} 20. Qxd3 {[%emt 0:01:41]} Rc8 {[%emt 0:07:38]} (20... O-O $1 $14) 21. Ne2 {[%emt 0:04:55] White is much more active.} (21. Re2 $16) 21... Ne4 $14 {[%emt 0:01:01]} 22. f3 {[%emt 0:00:05]} Nf2 {[%emt 0:00:00][%csl LRd3,LRh3]} 23. Qc2 {[%emt 0:01:23]} Nxh3 {[%emt 0:00:00]} 24. Rh1 {[%emt 0:00:31]} (24. Ng3 $1 $14) 24... Ng5 {[%emt 0:06:29]} (24... Nxf4 $11 {remains equal.} 25. exf4 c5) 25. Ng3 $1 $40 {[%emt 0:05:29][%mdl 128] White wants a kill.} Ne6 {[%emt 0:01:48]} 26. Nf5 {[%emt 0:00:45]} (26. Nh5 $16) 26... Bf8 {[%emt 0:01:46]} (26... Nxf4 $14 27. exf4 Bxf5 28. Qxf5 Bf6 (28... O-O $2 29. Nxc6 Rxc6 30. Rxc6 $18)) 27. Bg3 $18 {[%emt 0:04:07]} Qb6 $2 {[%emt 0:10:05] [#]} (27... c5) 28. Nxh6 $1 {[%emt 0:05:43][%mdl 512]} Rxh6 {[%emt 0:04:26]} (28... gxh6 29. Qf5) 29. Rxh6 {[%emt 0:00:00][%cal Oc2f5] Threatens to win with Qf5!} gxh6 {[%emt 0:00:22]} 30. Qf5 {[%emt 0:00:00]} Be7 {[%emt 0:00:21]} 31. Qxf7+ {[%emt 0:00:00]} (31. Nxf7 b4 $11 (31... Ng5 $2 32. Nd6+ Bxd6 33. Qg6+ Kd8 34. Bxd6 $18)) 31... Kd8 {[%emt 0:00:00]} 32. Qg8+ {[%emt 0:06:43]} Nf8 {[%emt 0:00:00]} 33. Nf7+ {[%emt 0:00:08]} (33. Bh4 $142 Bxh4 34. Qxf8+ Kc7 35. Qg7 (35. Qxh6 Be7 $11)) 33... Ke8 {[%emt 0:00:00]} 34. Nd6+ $1 {[%emt 0:00:00][%mdl 1024] White has strong compensation.} (34. Nxh6 c5 35. Qf7+ Kd8 $17) (34. Bd6 $2 Be6 35. Bxe7 Kxe7 $19 (35... Bxf7 36. Qxf8+ Kd7 37. Qxf7 Rc7 38. Bc5+ Kc8 39. Qe8+ Kb7 40. Bxb6 Kxb6 41. Qa8)) 34... Kd8 {[%emt 0:00:00][%cal Ob6a6]} 35. Nf7+ {[%emt 0:00:00]} (35. Nxc8 $6 Bxc8 $14) 35... Ke8 {[%emt 0:00:00] aiming for ...Be6.} 36. Nd6+ $1 {[%emt 0:00:00]} ({But not} 36. Nxh6 c5 37. Qf7+ Kd8 $17) (36. Bd6 $2 Be6 37. Qh8 Bxf7 $19) 36... Kd8 {[%emt 0:00:00][%cal Ob6a6,Be8d8,Bd8c7,Bc7d7][%mdl 32] [#]} 37. Bh4 $1 {[%emt 0:00:14][%mdl 512]} Bxh4 {[%emt 0:00:00]} 38. Qxf8+ {[%emt 0:00:00]} Kc7 {[%emt 0:00:00]} 39. Nxc8 {[%emt 0:00:00]} Bxc8 {[%emt 0:00:00]} 40. Qxh6 {[%emt 0:00:00]} Be7 {[%emt 0:00:00]} (40... Bd8 {might work better.} 41. Kc2 Bd7) 41. Qg7 {[%emt 0:05:12]} Kd7 {[%emt 0:00:42]} 42. f4 {[%emt 0:03:41]} Qa5 {[%emt 0:03:07]} 43. Kc2 {[%emt 0:00:21] Dodges Qd2+} (43. Qg6 $18 Bb7 44. Kc2 (44. Qf5+ Kc7 $16)) 43... b4 $1 $11 {[%emt 0:00:39]} 44. Qh7 {[%emt 0:14:15]} Ba6 {[%emt 0:03:19]} 45. Re1 {[%emt 0:00:34] And now f5 would win. The board is on fire.} Qb5 {[%emt 0:02:14]} 46. Kc1 {[%emt 0:06:51]} Qd3 {[%emt 0:27:49]} 47. Qxd3 {[%emt 0:00:12]} Bxd3 {[%emt 0:00:04]} 48. Rh1 {[%emt 0:00:13]} (48. Kd2 $5 Be4 $8 49. Rc1 $11) 48... c5 {[%emt 0:00:20]} 49. dxc5 {[%emt 0:00:32]} Bxc5 {[%emt 0:00:07]} 50. Kd2 {[%emt 0:00:15]} Be4 {[%emt 0:00:12] A strong pair of Bishops.} 51. Rh5 {[%emt 0:01:01]} Bf8 {[%emt 0:03:58]} 52. f5 {[%emt 0:01:55]} Kd6 {[%emt 0:00:50]} 53. Rh7 {[%emt 0:03:44] Black must now prevent Rf7.} Ke5 {[%emt 0:00:53]} 54. Rh8 {[%emt 0:00:32]} Be7 {[%emt 0:01:47][%mdl 8192] [#]} (54... Bc5 $11) 55. Rh6 $1 $18 {[%emt 0:02:51] White is clearly winning.} Bf6 {[%emt 0:00:08]} 56. Rg6 {[%emt 0:00:28]} Bb1 {[%emt 0:00:51]} 57. g5 {[%emt 0:03:11]} Bxg5 {[%emt 0:00:18]} 58. Rxg5 {[%emt 0:00:02]} Bxf5 {[%emt 0:00:13]} 59. Rh5 {[%emt 0:00:35] Weighted Error Value: White=0.39/Black=0.32.  Loses game:     	---       	Black=2      Missed win:     	White=1     	---        Mistake:       	White=3     	Black=5      Inaccurate:     	White=1     	Black=3      OK:         	White=18    	Black=19     Best:        	White=1     	Black=5      Strong:       	White=4     	Black=2      Brilliant:      	White=2     	---} 1-0